[Event "III Menorca Open-A 2024"]
[Site "Ciutadella Menorca"]
[Date "2024.04.05"]
[Round "6.8"]
[White "Pichot, Alan"]
[Black "Seemann, Jakub"]
[Result "0-1"]
[ECO "B51"]
[WhiteElo "2644"]
[BlackElo "2465"]
[Annotator "TA"]
[PlyCount "96"]
[EventDate "2024.04.02"]
[EventType "swiss"]
[EventCountry "ESP"]
[SourceTitle "playchess.com"]
[Source "ChessBase"]
[SourceQuality "1"]
[TimeControl "5400+30"]

{[%evp 9,96,5,13,0,59,62,62,62,52,50,73,62,77,87,101,110,121,69,61,68,199,36,37,22,48,0,0,0,0,0,55,66,75,-3,0,0,-2,-68,0,-90,-89,-202,-79,-106,-97,-110,-49,-119,-112,-182,-127,-176,-181,-159,-182,-251,42,29,93,90,81,95,93,0,8,0,0,0,28,0,0,0,0,0,0,0,0,-10,-11,-81,-88,-55,-62,-1207,-1119,-2322,-2517,-29984,-29986]} 1. e4 {[%emt 0:00:09]} c5 {[%emt 0:00:34]} 2. Nf3 {[%emt 0:00:33]} d6 {[%emt 0:00:04]} 3. Bb5+ {[%emt 0:00:11]} Nd7 {[%emt 0:00:05]} 4. Ba4 {[%emt 0:00:14]} Ngf6 {[%emt 0:03:48]} 5. O-O {[%emt 0:00:09]} a6 {[%emt 0:02:10][%cal Ob7b5]} 6. c4 {[%emt 0:02:38]} Nxe4 {[%emt 0:11:09]} (6... e6 $11) 7. Re1 $14 {[%emt 0:17:04]} Nef6 {[%emt 0:00:17][%cal Ob7b5]} 8. d4 {[%emt 0:00:38] White is slightly better.} cxd4 {[%emt 0:00:12]} 9. Nxd4 {[%emt 0:04:18]} e6 {[%emt 0:01:20]} 10. Nc3 {[%emt 0:14:43]} Be7 {[%emt 0:03:48] [#]} 11. Rxe6 $1 {[%emt 0:02:47]} fxe6 {[%emt 0:02:37]} (11... O-O 12. Re1) 12. Nxe6 {[%emt 0:00:06]} Qa5 {[%emt 0:01:41]} 13. Bd2 {[%emt 0:03:22]} (13. Nxg7+ Kf7 14. Bh6 Rg8 $19) (13. c5 $1 $16 {[%cal Rc5d6]} b5 (13... dxc5 14. Qe2 $14) 14. cxb6 (14. Nxg7+ $2 Kf7 $19) (14. cxd6 $2 bxa4 15. Nc7+ Kf7 $19)) 13... Qe5 {[%emt 0:17:56]} 14. Nc7+ {[%emt 0:06:34]} (14. Nxg7+ $2 Kf7 15. Qf3 Qd4 $19 (15... Kxg7 16. Re1 $11)) 14... Kd8 {[%emt 0:03:17]} (14... Kf7 $14) 15. Bf4 $2 {[%emt 0:12:27]} (15. Nxa8 $18 {[%cal Oc3d5]} Nc5 16. h3) 15... Kxc7 {[%emt 0:09:59]} 16. Bxe5 {[%emt 0:00:06]} Nxe5 {[%emt 0:02:04]} 17. Qd4 {[%emt 0:08:35]} (17. f4 $14 {is superior.} Ng6 18. Qd4) 17... Bd7 $11 {[%emt 0:06:39]} 18. f4 {[%emt 0:00:48]} Nc6 {[%emt 0:02:00]} 19. Qd2 {[%emt 0:00:48] aiming for Nd5+.} Nb8 {[%emt 0:04:31]} (19... Rae8 $11) 20. Re1 {[%emt 0:05:03]} Re8 {[%emt 0:00:12]} 21. Nd5+ {[%emt 0:03:41]} (21. g4 $1 $16 {[%cal Rg4g5]} Bxa4 22. Nxa4) 21... Nxd5 {[%emt 0:00:29]} 22. cxd5 {[%emt 0:00:08] Threatens to win with Rc1+.} b5 $1 {[%emt 0:02:19]} (22... Bxa4 23. Qa5+ Kc8 24. Qxa4 $14) 23. Bb3 {[%emt 0:06:44]} (23. Bc2 $11 g6 24. Kf2 Bh4+ 25. g3) 23... Bf6 {[%emt 0:00:32]} (23... a5 $15) 24. Rc1+ {[%emt 0:00:31]} (24. Rxe8 $1 $11 Bxe8 25. g4) 24... Kb7 $17 {[%emt 0:00:25]} 25. a4 {[%emt 0:00:40]} Rc8 {[%emt 0:03:24]} (25... bxa4 26. Qb4+ Bb5 27. Bxa4 $14) (25... Ra7 $19 26. a5 Ka8) 26. Rxc8 {[%emt 0:02:42]} Kxc8 {[%emt 0:03:52]} (26... Bxc8 $6 27. Qb4 $11) 27. Qb4 {[%emt 0:00:08]} bxa4 {[%emt 0:05:49]} (27... Bxb2 $6 28. Bc2 Bf6 29. Qxd6 $11) (27... Ra7 $17 {Hoping for ...a5.} 28. h4 bxa4 (28... Bxb2 29. Qxd6 Rc7 30. Kh2 $15) 29. Bxa4 (29. Bc2 $2 Rc7 $19) 29... Bxa4 (29... Bxh4 30. Qc3+ Rc7 31. Bxd7+ Nxd7 32. Qxg7 $11) 30. Qxa4 Bxh4 (30... Bxb2 $2 31. Qc2+ Rc7 32. Qxb2 $18)) 28. Bc2 {[%emt 0:01:17] [#]} ({White should try} 28. Bxa4 $15 Bxa4 29. Qxa4) 28... Ra7 $1 {[%emt 0:01:28] Strongly threatening ...a5.} 29. Qxd6 {[%emt 0:01:53] [#]} (29. Bxa4 $17 {was necessary.} Bxa4 30. Qxa4) 29... Bd4+ {[%emt 0:01:57]} (29... Rc7 $1 $19 {[%cal Rc7c2]} 30. Bxh7 Bd4+ (30... Bxb2 $2 {too greedy.} 31. Qf8+ Kb7 32. Qb4+ Ka8 33. Qxb2 $18) 31. Kf1 Bb5+ (31... Bxb2 32. Bd3 $17) 32. Ke1 Bxb2 33. Qe6+ Kb7) 30. Kf1 {[%emt 0:01:30]} (30. Kh1 $17 Rb7 31. Qf8+ (31. Bxh7 Rxb2 32. h4 a5 $17) 31... Kc7 32. Be4) 30... Bb5+ {[%emt 0:00:37]} 31. Ke1 {[%emt 0:00:06]} Nd7 {[%emt 0:00:50] Inhibits Qf8+.} 32. Qe6 {[%emt 0:02:15]} (32. Qb4 $142 Bc5 33. Qd2) 32... Rc7 $2 {[%emt 0:02:09]} ({Better is} 32... Bxb2 $19 {And now ...a3 would win.} 33. d6 Kb7 34. Bxa4 Bc3+ (34... Bxa4 35. Qe4+ Kb6 36. Qxa4 $17) 35. Kf2 Bxa4) 33. Bxa4 $14 {[%emt 0:01:04]} Kb8 {[%emt 0:04:42]} (33... Bxa4 $11 {remains equal.} 34. Qxa6+ Kb8 35. Qxa4 Bxb2) 34. Bxb5 $16 {[%emt 0:01:31]} axb5 {[%emt 0:00:01]} 35. d6 {[%emt 0:00:44]} Rb7 {[%emt 0:00:03][%cal Ob5b4]} 36. g4 {[%emt 0:01:04]} (36. Ke2 $16) 36... Ka7 {[%emt 0:01:10]} 37. g5 {[%emt 0:00:34]} Kb6 {[%emt 0:01:10]} 38. b3 {[%emt 0:00:01]} Ra7 {[%emt 0:01:37]} 39. h4 {[%emt 0:00:28][%mdl 1024] White has compensation.} b4 {[%emt 0:01:50]} 40. h5 {[%emt 0:00:57]} Nc5 {[%emt 0:00:24]} 41. Qd5 {[%emt 0:00:40]} Bc3+ {[%emt 0:00:52]} 42. Ke2 {[%emt 0:00:07]} h6 {[%emt 0:00:35]} 43. Qg8 {[%emt 0:01:22]} Rd7 {[%emt 0:00:14]} 44. gxh6 {[%emt 0:00:34]} (44. Ke3 $11 {keeps the balance.}) 44... gxh6 $17 {[%emt 0:00:02]} 45. Qf8 {[%emt 0:00:30]} Nxb3 {[%emt 0:00:42] ...Nc5 is the strong threat.} 46. Kd3 $2 {[%emt 0:00:23][%mdl 8192]} (46. Qb8+ $15 Kc6 47. Qc8+ Kxd6 48. Qa6+ Ke7 49. Qxh6) 46... Nc5+ $19 {[%emt 0:00:14]} 47. Kc4 {[%emt 0:00:13]} Nb7 {[%emt 0:00:01]} 48. Qxh6 {[%emt 0:00:57]} Rxd6 {[%emt 0:02:39] Weighted Error Value: White=0.51/Black=0.28 (precise) .  Loses game:     	White=1     	---        Missed win:     	White=1     	Black=1      Mistake:       	White=12    	Black=8      Inaccurate:     	White=2     	Black=2      OK:         	White=9     	Black=11     Best:        	White=4     	Black=6      Strong:       	---       	Black=2      Brilliant:      	White=1     	---} 0-1

[Event "III Menorca Open-A 2024"]
[Site "Ciutadella Menorca"]
[Date "2024.04.05"]
[Round "6.9"]
[White "Idani, Pouya"]
[Black "Murzin, Volodar"]
[Result "1/2-1/2"]
[ECO "C67"]
[WhiteElo "2609"]
[BlackElo "2632"]
[Annotator "TA"]
[PlyCount "39"]
[EventDate "2024.04.02"]
[EventType "swiss"]
[EventCountry "ESP"]
[SourceTitle "playchess.com"]
[Source "ChessBase"]
[SourceQuality "1"]
[TimeControl "5400+30"]

{[%evp 18,39,22,10,20,18,7,17,21,9,6,1,10,16,22,6,15,8,12,0,0,0,9,1]} 1. e4 {[%emt 0:01:03]} e5 {[%emt 0:00:11]} 2. Nf3 {[%emt 0:00:05]} Nc6 {[%emt 0:00:06]} 3. Bb5 {[%emt 0:00:06]} Nf6 {[%emt 0:00:06]} 4. O-O {[%emt 0:00:40][%cal Bh1f1,Bf1e1,Be1e5][%mdl 32]} Nxe4 {[%emt 0:00:05]} 5. Re1 {[%emt 0:00:21]} Nd6 {[%emt 0:00:06]} 6. Nxe5 {[%emt 0:00:31]} Be7 {[%emt 0:00:06]} 7. Bf1 {[%emt 0:00:05]} Nxe5 {[%emt 0:00:10]} 8. Rxe5 {[%emt 0:00:06]} O-O {[%emt 0:00:04]} 9. d4 {[%emt 0:00:18]} Bf6 {[%emt 0:00:10]} 10. Re1 {[%emt 0:00:32] The position is equal.} Re8 {[%emt 0:00:08]} 11. c3 {[%emt 0:01:19]} Rxe1 {[%emt 0:00:16]} 12. Qxe1 {[%emt 0:00:11]} Ne8 {[%emt 0:00:17]} 13. Bd3 {[%emt 0:00:20]} d5 {[%emt 0:01:09]} 14. Bf4 {[%emt 0:00:06][%cal Bc1f4,Bf4e5,Be5d6][%mdl 32]} Be6 {[%emt 0:20:51]} 15. Nd2 {[%emt 0:01:38]} Nd6 {[%emt 0:00:32]} 16. Qe3 {[%emt 0:08:01]} c6 {[%emt 0:17:42]} 17. Re1 {[%emt 0:11:33]} Qd7 {[%emt 0:19:13]} 18. Be5 {[%emt 0:05:48] Black must now prevent Bxf6.} Be7 {[%emt 0:02:15]} 19. Nf3 {[%emt 0:10:22]} Bf5 {[%emt 0:05:41]} 20. Bxd6 {[%emt 0:01:21] Not much happened in this game.   Weighted Error Value: White=0.06 (flawless) /Black=0.03 (flawless) .  OK:         	White=3     	Black=5} 1/2-1/2

[Event "III Menorca Open-A 2024"]
[Site "Ciutadella Menorca"]
[Date "2024.04.05"]
[Round "6.10"]
[White "Chigaev, Maksim"]
[Black "Makkar, Rajat"]
[Result "1-0"]
[ECO "C77"]
[WhiteElo "2617"]
[BlackElo "2452"]
[Annotator "TA"]
[PlyCount "51"]
[EventDate "2024.04.02"]
[EventType "swiss"]
[EventCountry "ESP"]
[SourceTitle "playchess.com"]
[Source "ChessBase"]
[SourceQuality "1"]
[TimeControl "5400+30"]

{[%evp 12,51,22,2,41,4,18,29,11,2,12,11,75,82,91,99,104,98,375,250,285,268,284,275,308,298,294,293,349,307,272,308,306,290,606,600,591,623,694,643,2305,1968]} 1. e4 {[%emt 0:01:22]} e5 {[%emt 0:00:57]} 2. Nf3 {[%emt 0:00:07]} Nc6 {[%emt 0:00:05]} 3. Bb5 {[%emt 0:00:05][%cal Bf1b5,Bb5a4,Ba4b3][%mdl 32]} a6 {[%emt 0:00:10]} 4. Ba4 {[%emt 0:00:06]} Nf6 {[%emt 0:00:27]} 5. Nc3 {[%emt 0:00:08]} Bc5 {[%emt 0:00:06]} 6. O-O {[%emt 0:00:17]} b5 {[%emt 0:00:27]} 7. Bb3 {[%emt 0:00:06]} d6 {[%emt 0:00:04]} 8. a4 {[%emt 0:00:05]} (8. Nd5 $5) 8... Rb8 {[%emt 0:01:13]} 9. axb5 {[%emt 0:02:27]} axb5 {[%emt 0:00:16] White has an edge.} 10. Nd5 {[%emt 0:05:04][%cal Od2d4]} O-O {[%emt 0:10:22]} 11. d4 {[%emt 0:35:24]} Bxd4 {[%emt 0:25:52]} (11... Nxd5 $11 12. dxc5 Nf6) 12. Bg5 $16 {[%emt 0:05:07]} Be6 {[%emt 0:01:21]} 13. Nxf6+ {[%emt 0:03:09]} gxf6 {[%emt 0:00:06]} 14. Bh6 {[%emt 0:00:03] [#] Bxe6 is the strong threat.} f5 $2 {[%emt 0:11:08][%mdl 8192]} 15. exf5 {[%emt 0:03:19] aiming for Nxd4.} Bxf5 {[%emt 0:02:02][%cal Od4b2]} 16. Bxf8 {[%emt 0:01:01]} Qxf8 {[%emt 0:00:56]} 17. Bd5 {[%emt 0:00:23]} Nb4 {[%emt 0:01:12]} 18. Nxd4 {[%emt 0:01:16]} exd4 {[%emt 0:00:12]} 19. Qxd4 {[%emt 0:01:00]} Nxc2 {[%emt 0:00:46]} 20. Qf6 {[%emt 0:06:49]} Bg6 {[%emt 0:00:28]} 21. Ra7 {[%emt 0:00:16]} Nb4 {[%emt 0:00:51]} 22. Bf3 {[%emt 0:00:48]} c5 $2 {[%emt 0:01:30] [#]} (22... Rc8 23. h4 Qg7) 23. h4 $18 {[%emt 0:00:06] White is clearly winning.} h5 {[%emt 0:06:41]} 24. Re1 {[%emt 0:08:50]} d5 {[%emt 0:01:18]} 25. Re5 {[%emt 0:11:08]} Qd8 {[%emt 0:03:00]} 26. Rae7 {[%emt 0:00:58] White took control after the opening.   Weighted Error Value: White=0.14 (very precise) /Black=0.73.  Loses game:     	---       	Black=1      Mistake:       	---       	Black=2      Inaccurate:     	White=2     	---        OK:         	White=7     	Black=2      Best:        	White=3     	---} 1-0

[Event "III Menorca Open-A 2024"]
[Site "Ciutadella Menorca"]
[Date "2024.04.05"]
[Round "6.11"]
[White "Krzyzanowski, Marcin"]
[Black "Karthik Venkataraman"]
[Result "1-0"]
[ECO "C50"]
[WhiteElo "2510"]
[BlackElo "2609"]
[Annotator "RC"]
[PlyCount "126"]
[EventDate "2024.04.02"]
[EventType "swiss"]
[EventCountry "ESP"]
[SourceTitle "playchess.com"]
[Source "ChessBase"]
[SourceQuality "1"]
[TimeControl "5400+30"]

1. e4 {[%emt 0:00:03]} e5 {[%emt 0:00:05]} 2. Nf3 {[%emt 0:00:05]} Nc6 {[%emt 0:00:04]} 3. Bc4 {[%emt 0:00:05]} Nf6 {[%emt 0:00:05]} 4. d3 {[%emt 0:00:06]} Bc5 {[%emt 0:00:05]} 5. Nc3 {[%emt 0:00:09]} h6 {[%emt 0:00:19]} 6. O-O {[%emt 0:00:19]} d6 {[%emt 0:01:04]} 7. Na4 {[%emt 0:00:50]} Bb6 {[%emt 0:00:06]} 8. a3 {[%emt 0:00:23]} O-O {[%emt 0:00:21]} 9. c3 {[%emt 0:01:25]} Qe7 {[%emt 0:04:26]} 10. Nxb6 {[%emt 0:01:23]} axb6 {[%emt 0:00:08]} 11. b4 {[%emt 0:02:34]} Be6 {[%emt 0:04:05]} 12. Bxe6 {[%emt 0:04:22]} Qxe6 {[%emt 0:00:33]} 13. Re1 {[%emt 0:00:56]} b5 {[%emt 0:02:01]} 14. Bb2 {[%emt 0:08:21]} Nd7 {[%emt 0:02:03]} 15. a4 {[%emt 0:05:32]} bxa4 {[%emt 0:01:03]} 16. Rxa4 {[%emt 0:00:07]} Rxa4 {[%emt 0:10:03]} 17. Qxa4 {[%emt 0:00:05]} f5 {[%emt 0:00:09]} 18. Nd2 {[%emt 0:05:40]} fxe4 {[%emt 0:30:43]} 19. Nxe4 {[%emt 0:05:06]} d5 {[%emt 0:01:02]} 20. Ng3 {[%emt 0:03:31]} Qf7 {[%emt 0:05:51]} 21. Re2 {[%emt 0:05:32]} Nd8 {[%emt 0:01:02]} 22. Qa2 {[%emt 0:11:29]} c6 {[%emt 0:04:13]} 23. c4 {[%emt 0:02:07]} dxc4 {[%emt 0:02:12]} 24. dxc4 {[%emt 0:01:12]} Nb6 {[%emt 0:05:15]} 25. Bxe5 {[%emt 0:04:50]} Nxc4 {[%emt 0:00:47]} 26. Bc3 {[%emt 0:02:40]} b5 {[%emt 0:00:50]} 27. Ne4 {[%emt 0:04:01]} Ne6 {[%emt 0:08:47]} 28. Nd6 {[%emt 0:04:29]} Nxd6 {[%emt 0:00:06]} 29. Rxe6 {[%emt 0:02:14]} Ne4 {[%emt 0:03:18]} 30. Bd4 {[%emt 0:03:50]} Rd8 {[%emt 0:04:51]} 31. h4 {[%emt 0:00:35]} Nd6 {[%emt 0:04:30]} 32. Qe2 {[%emt 0:09:08]} Nf5 {[%emt 0:00:03]} 33. Bb6 {[%emt 0:00:39]} Rd1+ {[%emt 0:01:26]} 34. Kh2 {[%emt 0:02:20]} Rd6 {[%emt 0:00:13]} 35. Re8+ {[%emt 0:01:03]} Kh7 {[%emt 0:00:01]} 36. g3 {[%emt 0:01:44]} h5 {[%emt 0:00:57]} 37. Re5 {[%emt 0:02:11]} Rd5 {[%emt 0:04:56]} 38. Rxd5 {[%emt 0:01:51]} Qxd5 {[%emt 0:00:16]} 39. Qxh5+ {[%emt 0:00:05]} Kg8 {[%emt 0:00:02]} 40. Qe8+ {[%emt 0:03:23]} Kh7 {[%emt 0:00:03]} 41. Qe2 {[%emt 0:00:13]} Nd6 {[%emt 0:00:43]} 42. Be3 {[%emt 0:00:43]} Qe4 {[%emt 0:00:40]} 43. Qh5+ {[%emt 0:01:32]} Kg8 {[%emt 0:00:01]} 44. Qg5 {[%emt 0:01:00]} Nc4 {[%emt 0:01:11]} 45. Qf4 {[%emt 0:01:07]} Qd3 {[%emt 0:01:31]} 46. Qd4 {[%emt 0:01:01]} Qb1 {[%emt 0:00:01]} 47. Bd2 {[%emt 0:00:42]} Nxd2 {[%emt 0:00:12]} 48. Qxd2 {[%emt 0:00:05]} Qe4 {[%emt 0:00:02]} 49. Qd6 {[%emt 0:00:35]} Qf3 {[%emt 0:01:00]} 50. Qd4 {[%emt 0:00:15]} g6 {[%emt 0:01:01]} 51. Kg1 {[%emt 0:00:27]} Kf7 {[%emt 0:00:28]} 52. Qd7+ {[%emt 0:00:21]} Kf8 {[%emt 0:00:12]} 53. g4 {[%emt 0:01:18]} Qf4 {[%emt 0:01:01]} 54. Qd8+ {[%emt 0:00:22]} Kf7 {[%emt 0:00:04]} 55. Qd7+ {[%emt 0:00:03]} Kf8 {[%emt 0:00:02]} 56. Qe6 {[%emt 0:00:35]} Kg7 {[%emt 0:00:32]} 57. Qe7+ {[%emt 0:00:56]} Kg8 {[%emt 0:00:04]} 58. Qe8+ {[%emt 0:00:21]} Kg7 {[%emt 0:00:05]} 59. Qd7+ {[%emt 0:00:19]} Kf8 {[%emt 0:01:28]} 60. g5 {[%emt 0:01:13]} Qxh4 {[%emt 0:00:23]} 61. Qd8+ {[%emt 0:00:20]} Kg7 {[%emt 0:00:01]} 62. Qf6+ {[%emt 0:00:14]} Kh7 {[%emt 0:00:02]} 63. Qf7+ {[%emt 0:00:41]} Kh8 {[%emt 0:00:01]} 1-0

[Event "III Menorca Open-A 2024"]
[Site "Ciutadella Menorca"]
[Date "2024.04.05"]
[Round "6.12"]
[White "Siddharth, Jagadeesh"]
[Black "Albornoz Cabrera, Carlos Daniel"]
[Result "1/2-1/2"]
[ECO "B90"]
[WhiteElo "2491"]
[BlackElo "2603"]
[Annotator "TA"]
[PlyCount "73"]
[EventDate "2024.04.02"]
[EventType "swiss"]
[EventCountry "ESP"]
[SourceTitle "playchess.com"]
[Source "ChessBase"]
[SourceQuality "1"]
[TimeControl "5400+30"]

{[%evp 13,73,33,28,12,23,4,22,12,36,17,25,41,14,0,49,0,0,0,0,0,29,0,31,36,32,20,22,33,20,21,7,0,0,0,0,-8,-10,-30,40,0,0,0,34,-27,8,14,45,9,14,20,19,8,20,21,31,29,60,0,0,-27,-37,-34]} 1. e4 {[%emt 0:01:40]} c5 {[%emt 0:00:02]} 2. Nf3 {[%emt 0:00:07]} d6 {[%emt 0:00:03]} 3. d4 {[%emt 0:00:10]} cxd4 {[%emt 0:00:03]} 4. Nxd4 {[%emt 0:00:07]} Nf6 {[%emt 0:00:04]} 5. Nc3 {[%emt 0:00:08]} a6 {[%emt 0:00:02]} 6. Be3 {[%emt 0:00:09]} Ng4 {[%emt 0:00:04]} 7. Bg5 {[%emt 0:00:25]} h6 {[%emt 0:00:05]} 8. Bc1 {[%emt 0:00:04]} Nf6 {[%emt 0:00:07]} 9. Bd3 {[%emt 0:00:07]} e5 {[%emt 0:00:07]} 10. Nde2 {[%emt 0:00:06] The position is equal.} Nbd7 {[%emt 0:00:52][%cal Bb8d7,Bd7c5,Bc5d3][%mdl 32]} 11. O-O {[%emt 0:01:29]} Be7 {[%emt 0:02:34]} 12. Ng3 {[%emt 0:04:44]} Nc5 {[%emt 0:01:28]} 13. a4 {[%emt 0:02:49]} O-O {[%emt 0:00:19]} (13... h5 $11 {was preferrable.}) 14. Re1 {[%emt 0:02:37]} (14. Be2 $14 {should be considered.}) 14... Nxd3 $11 {[%emt 0:15:59]} 15. Qxd3 {[%emt 0:06:14]} Be6 {[%emt 0:00:04]} 16. a5 {[%emt 0:02:54]} Re8 {[%emt 0:06:04]} 17. Nf1 {[%emt 0:05:52]} b5 {[%emt 0:08:54]} 18. axb6 {[%emt 0:05:10]} Qxb6 {[%emt 0:00:02]} 19. Ne3 {[%emt 0:00:13]} Rec8 {[%emt 0:08:20]} 20. Rd1 {[%emt 0:00:24]} Qb7 {[%emt 0:03:28]} 21. b3 {[%emt 1:05:31]} Bd8 {[%emt 0:08:59][%cal Oc8c3]} 22. Ncd5 {[%emt 0:00:00]} Nxd5 {[%emt 0:01:35]} 23. exd5 {[%emt 0:00:00]} Bd7 {[%emt 0:00:05]} 24. Ba3 {[%emt 0:00:00]} Be7 {[%emt 0:43:10]} 25. Qe4 {[%emt 0:00:00]} Bf8 (25... a5 $11) 26. f4 {[%emt 0:02:30]} Re8 {[%emt 0:01:00]} 27. Kh1 {[%emt 0:00:30]} Rac8 {[%emt 0:00:30][%cal Ba8c8,Bc8c7,Bc7e7,Be7e4][%mdl 32]} 28. Bb2 {[%emt 0:00:30]} (28. f5 $14) 28... exf4 {[%emt 0:00:00]} 29. Qxf4 {[%emt 0:00:00]} Rc7 {[%emt 0:01:00]} 30. Rf1 {[%emt 0:00:00]} Bc8 {[%emt 0:00:00]} 31. Rf3 {[%emt 0:00:00]} Rce7 {[%emt 0:00:00]} 32. Raf1 {[%emt 0:00:00][%cal Oh2h3]} Re4 {[%emt 0:01:30]} 33. Qg3 {[%emt 0:02:30]} Qe7 {[%emt 0:00:00]} 34. Bc1 {[%emt 0:00:00]} Re5 {[%emt 0:00:00][%cal Of7f5]} 35. Nc4 {[%emt 0:00:00]} (35. h3 $14) 35... Rxd5 {[%emt 0:00:00][%cal Od5f5]} 36. Bxh6 {[%emt 0:00:00] [#]} Rf5 $1 {[%emt 0:00:24] aiming for ...Rxf3.} 37. Bf4 {[%emt 0:00:00] Weighted Error Value: White=0.16 (very precise) /Black=0.14 (very precise) .  Mistake:       	White=3     	Black=2      Inaccurate:     	White=3     	Black=6      OK:         	White=9     	Black=13     Best:        	White=1     	Black=1} ({Much worse is} 37. Rxf5 Bxf5 38. Ne3 Be4 $17) 1/2-1/2

[Event "III Menorca Open-A 2024"]
[Site "Ciutadella Menorca"]
[Date "2024.04.05"]
[Round "6.13"]
[White "Macias Pino, Diego"]
[Black "Lagarde, Maxime"]
[Result "1-0"]
[ECO "B45"]
[WhiteElo "2478"]
[BlackElo "2638"]
[Annotator "RC"]
[PlyCount "87"]
[EventDate "2024.04.02"]
[EventType "swiss"]
[EventCountry "ESP"]
[SourceTitle "playchess.com"]
[Source "ChessBase"]
[SourceQuality "1"]
[TimeControl "5400+30"]

1. e4 {[%emt 0:00:03]} c5 {[%emt 0:00:03]} 2. Nf3 {[%emt 0:00:03]} e6 {[%emt 0:00:03]} 3. d4 {[%emt 0:00:04]} cxd4 {[%emt 0:00:03]} 4. Nxd4 {[%emt 0:00:04]} Nf6 {[%emt 0:00:03]} 5. Nc3 {[%emt 0:00:11]} Nc6 {[%emt 0:00:04]} 6. Nxc6 {[%emt 0:00:05]} bxc6 {[%emt 0:00:04]} 7. e5 {[%emt 0:00:04]} Nd5 {[%emt 0:00:06]} 8. Ne4 {[%emt 0:00:03]} Qc7 {[%emt 0:00:08]} 9. f4 {[%emt 0:00:05]} Qb6 {[%emt 0:00:21]} 10. c4 {[%emt 0:00:07]} Bb4+ {[%emt 0:00:19]} 11. Ke2 {[%emt 0:00:06]} f5 {[%emt 0:00:08]} 12. exf6 {[%emt 0:00:19]} Nxf6 {[%emt 0:01:06]} 13. Be3 {[%emt 0:00:15]} Qd8 {[%emt 0:01:15]} 14. Nd6+ {[%emt 0:00:10]} Bxd6 {[%emt 0:00:19]} 15. Qxd6 {[%emt 0:00:03]} Bb7 {[%emt 0:00:15]} 16. Kd1 {[%emt 0:01:41]} c5 {[%emt 0:01:04]} 17. Qxc5 {[%emt 0:00:05]} Be4 {[%emt 0:00:23]} 18. Qa3 {[%emt 0:00:11]} d6 {[%emt 0:05:37]} 19. Rc1 {[%emt 0:03:18]} O-O {[%emt 0:01:07]} 20. Bd3 {[%emt 0:05:52]} Qe8 {[%emt 0:04:00]} 21. Bxe4 {[%emt 0:17:20]} Nxe4 {[%emt 0:00:06]} 22. Rc2 {[%emt 0:01:33]} e5 {[%emt 0:07:38]} 23. Kc1 {[%emt 0:14:21]} exf4 {[%emt 0:01:40]} 24. Bd4 {[%emt 0:00:51]} Qh5 {[%emt 0:06:31]} 25. Re1 {[%emt 0:13:11]} Rae8 {[%emt 0:22:47]} 26. Rce2 {[%emt 0:08:53]} Qg6 {[%emt 0:10:08]} 27. Qxa7 {[%emt 0:02:11]} d5 {[%emt 0:01:03]} 28. Qb7 {[%emt 0:01:57]} Rd8 {[%emt 0:00:22]} 29. c5 {[%emt 0:03:32]} Rf7 {[%emt 0:03:28]} 30. Qb6 {[%emt 0:01:02]} Qg5 {[%emt 0:00:04]} 31. Kb1 {[%emt 0:00:38]} Re8 {[%emt 0:01:55]} 32. a3 {[%emt 0:02:36]} h5 {[%emt 0:01:13]} 33. Ka2 {[%emt 0:03:02]} h4 {[%emt 0:02:22]} 34. Qb3 {[%emt 0:03:10]} Qf5 {[%emt 0:01:06]} 35. h3 {[%emt 0:05:24]} Re6 {[%emt 0:04:30]} 36. Qd3 {[%emt 0:02:16]} Rg6 {[%emt 0:00:54]} 37. Rf1 {[%emt 0:01:58]} Qd7 {[%emt 0:06:39]} 38. Rc2 {[%emt 0:01:32]} Qc6 {[%emt 0:00:30]} 39. b4 {[%emt 0:01:12]} Qa4 {[%emt 0:02:55]} 40. Bb2 {[%emt 0:01:17]} Ra6 {[%emt 0:03:29]} 41. Qb3 {[%emt 0:01:03]} Qb5 {[%emt 0:00:37]} 42. Rd1 {[%emt 0:00:25]} Nf6 {[%emt 0:01:09]} 43. Rf2 {[%emt 0:02:04]} Nd7 {[%emt 0:01:05]} 44. Rxd5 {[%emt 0:00:51]} 1-0